bitfinex-derivatives/quotes_SOLF0:USTF0_20250529
["timestamp","ask_amount","ask_price","bid_price","bid_amount"]
[1748534325313,0.04489098,169.68,169.65,5.93502968]
[1748534325519,0.04489098,169.68,169.65,0.04232968]
[1748534327723,0.04489098,169.68,169.67,5.8923]
[1748534333626,5.93679098,169.68,169.65,5.93492968]
[1748534333824,0.04489098,169.68,169.65,5.93492968]
[1748534334030,0.04489098,169.68,169.66,5.8926]
[1748534334327,0.04489098,169.68,169.65,0.04232968]
[1748534334530,0.04489098,169.68,169.66,31.78]
[1748534334717,0.04489098,169.68,169.67,5.8923]
[1748534339727,0.04489098,169.68,169.66,37.6724]
[1748534340230,0.04489098,169.68,169.66,31.78]
[1748534340731,0.04489098,169.68,169.65,0.04232968]
[1748534340732,5.8926,169.67,169.65,0.04232968]
[1748534340934,0.04489098,169.68,169.62,31.78]
[1748534341925,0.04489098,169.68,169.63,0.03890836]
[1748534342729,5.8933,169.64,169.63,0.03890836]
[1748534343536,31.78489098,169.68,169.58,31.74]
[1748534343735,31.74,169.68,169.58,31.74]
[1748534344234,31.74,169.68,169.59,5.8948]
[1748534344632,0.04239848,169.65,169.62,0.04264353]
[1748534345032,5.8936,169.63,169.62,0.04264353]
[1748534350739,5.93559848,169.65,169.62,0.04264353]
[1748534351033,0.04239848,169.65,169.62,0.04264353]
[1748534351239,5.8936,169.64,169.62,0.04264353]
[1748534351442,0.04239848,169.65,169.62,0.04264353]
[1748534351839,5.8936,169.64,169.62,0.04264353]
[1748534352242,0.04239848,169.65,169.62,0.04264353]
[1748534352644,0.04239848,169.65,169.64,5.8933]
[1748534354539,2.0891,169.72,169.62,31.80264353]
[1748534355047,5.8914,169.7,169.66,5.8924]
[1748534355341,5.8914,169.7,169.62,31.76]
[1748534355542,0.03787853,169.68,169.64,0.04328044]
[1748534355741,0.03787853,169.68,169.66,5.8923]
[1748534357847,0.03787853,169.68,169.64,0.04328044]
[1748534358748,0.03787853,169.68,169.65,5.8927]
[1748534359444,0.03787853,169.68,169.66,5.8926]
[1748534360353,0.03787853,169.68,169.65,5.8928]
[1748534361049,0.03787853,169.68,169.66,5.8924]
[1748534361752,5.92987853,169.68,169.65,5.8929]
[1748534361947,0.03787853,169.68,169.65,5.8929]
[1748534362752,0.03787853,169.68,169.66,5.8925]
[1748534364155,0.03787853,169.68,169.67,5.8922]
[1748534366358,31.74,169.77,169.69,5.8913]
[1748534366754,5.8904,169.73,169.69,5.8913]
[1748534367454,0.0410931,169.73,169.69,0.0421267]
[1748534367763,0.0410931,169.73,169.71,5.8905]
[1748534367958,0.0410931,169.73,169.69,31.7821267]
[1748534368160,0.0410931,169.73,169.71,5.8907]
[1748534368358,0.0410931,169.73,169.69,31.7821267]
[1748534368556,0.0410931,169.73,169.7,5.891]
[1748534370460,0.0410931,169.73,169.71,5.8908]
[1748534371356,0.0410931,169.73,169.72,5.8905]
[1748534371563,0.0410931,169.73,169.69,31.7821267]
[1748534372361,0.0410931,169.73,169.7,5.8911]
[1748534372561,0.0410931,169.73,169.69,31.7821267]
[1748534373263,0.0410931,169.73,169.7,5.8911]
[1748534373461,0.0410931,169.73,169.69,31.7821267]
[1748534373870,0.0410931,169.73,169.71,5.8906]
[1748534374585,0.0410931,169.73,169.69,31.7821267]
[1748534375566,0.0410931,169.73,169.71,5.8906]
[1748534375959,0.0410931,169.73,169.69,0.0421267]
[1748534376460,5.8911,169.71,169.69,0.0421267]
[1748534376759,0.0410931,169.73,169.69,0.0421267]
[1748534376956,5.8909,169.71,169.69,0.0421267]
[1748534377160,0.0410931,169.73,169.69,0.0421267]
[1748534377667,5.8908,169.72,169.69,0.0421267]
[1748534378459,5.8908,169.72,169.69,5.9336267]
[1748534378868,5.9313931,169.73,169.69,5.9336267]
[1748534379164,5.9313931,169.73,169.7,5.8911]
[1748534379362,5.9313931,169.73,169.69,0.0421267]
[1748534379567,0.0410931,169.73,169.69,0.0421267]
[1748534380366,0.0410931,169.73,169.7,5.891]
[1748534380565,0.0410931,169.73,169.69,0.0421267]
[1748534380964,5.9313931,169.73,169.7,5.891]
[1748534381170,0.0410931,169.73,169.7,5.891]
[1748534383768,0.0410931,169.73,169.69,5.9335267]
[1748534383971,0.0410931,169.73,169.69,0.0421267]
[1748534384163,5.8907,169.72,169.69,0.0421267]
[1748534384666,5.9314931,169.73,169.69,0.0421267]
[1748534384973,0.0410931,169.73,169.69,0.0421267]
[1748534385176,0.0410931,169.73,169.7,5.8909]
[1748534385666,0.0410931,169.73,169.71,5.8906]
[1748534385859,0.0410931,169.73,169.69,0.0421267]
[1748534386360,5.9313931,169.73,169.7,5.891]
[1748534388270,5.9313931,169.73,169.69,5.9335267]
[1748534388471,5.9313931,169.73,169.69,0.0421267]
[1748534388968,5.9313931,169.73,169.7,5.891]
[1748534390174,0.0410931,169.73,169.7,5.891]
[1748534390370,0.0410931,169.73,169.71,5.8907]
[1748534390674,0.0410931,169.73,169.69,0.0421267]
[1748534390877,5.9312931,169.73,169.69,0.0421267]
[1748534391174,5.9312931,169.73,169.7,5.891]
[1748534391570,0.0410931,169.73,169.71,5.8908]
[1748534391780,0.0410931,169.73,169.69,0.0421267]
[1748534392176,5.9314931,169.73,169.69,5.9334267]
[1748534392879,5.9314931,169.73,169.7,5.8912]
[1748534393379,0.0410931,169.73,169.7,5.8912]
[1748534393781,0.0410931,169.73,169.71,5.8908]
[1748534394678,0.0410931,169.73,169.7,5.8911]
[1748534395081,0.0410931,169.73,169.71,5.8908]
[1748534395983,0.0410931,169.73,169.7,5.891]
[1748534397684,0.0410931,169.73,169.71,5.8908]
[1748534398383,0.0410931,169.73,169.7,5.8911]
[1748534398785,0.0410931,169.73,169.69,0.0421267]
[1748534399488,0.0410931,169.73,169.72,5.8905]
[1748534404086,1.9095,169.8,169.75,5.8891]
[1748534404484,1.9095,169.8,169.74,5.8898]
[1748534405189,0.03952035,169.79,169.75,0.04472905]
[1748534405390,2.12652035,169.79,169.75,0.04472905]
[1748534405591,5.8891,169.76,169.75,0.04472905]
[1748534405782,2.12652035,169.79,169.75,0.04472905]
[1748534405984,5.8891,169.76,169.75,0.04472905]
[1748534406696,2.12652035,169.79,169.75,0.04472905]
[1748534406992,0.03952035,169.79,169.75,0.04472905]
[1748534407180,5.92782035,169.79,169.75,5.93382905]
[1748534407381,0.03952035,169.79,169.75,0.04472905]
[1748534408191,0.03952035,169.79,169.76,5.8889]
[1748534408491,0.03952035,169.79,169.75,0.04472905]
[1748534409490,5.8887,169.78,169.75,0.04472905]
[1748534410094,5.8888,169.77,169.75,0.04472905]
[1748534410288,0.03952035,169.79,169.75,0.04472905]
[1748534410488,5.92782035,169.79,169.75,5.93392905]
[1748534410686,0.03952035,169.79,169.75,0.04472905]
[1748534411596,5.8886,169.78,169.75,0.04472905]
[1748534411794,0.03952035,169.79,169.75,0.04472905]
[1748534412290,5.8891,169.77,169.75,0.04472905]
[1748534412490,0.03952035,169.79,169.75,0.04472905]
[1748534412795,5.8907,169.72,169.67,37.5321]
[1748534413188,31.64,169.78,169.67,37.5321]
[1748534413393,5.8909,169.71,169.68,5.8919]
[1748534413596,5.93388015,169.71,169.68,5.93523728]
[1748534413792,5.93388015,169.71,169.68,0.04333728]
[1748534413993,0.04298015,169.71,169.68,0.04333728]
[1748534414395,5.8916,169.69,169.68,0.04333728]
[1748534414990,0.04298015,169.71,169.68,0.04333728]
[1748534415403,5.8915,169.7,169.68,0.04333728]
[1748534415790,0.04298015,169.71,169.68,0.04333728]
[1748534415993,5.8914,169.7,169.68,0.04333728]
[1748534417802,5.8916,169.69,169.68,0.04333728]
[1748534418001,0.04298015,169.71,169.68,0.04333728]
[1748534418804,5.8914,169.7,169.68,0.04333728]
[1748534419003,0.04298015,169.71,169.68,0.04333728]
[1748534419199,5.93398015,169.71,169.68,0.04333728]
[1748534419403,0.04298015,169.71,169.68,0.04333728]
[1748534420105,5.8916,169.69,169.68,0.04333728]
[1748534421304,0.04298015,169.71,169.61,37.5341]
[1748534421502,6.2054,169.73,169.61,37.5341]
[1748534421503,6.2054,169.73,169.61,31.64]
[1748534422207,6.2054,169.73,169.65,0.04431017]
[1748534422208,0.03984356,169.69,169.65,0.04431017]
[1748534422399,5.8926,169.66,169.65,0.04431017]
[1748534423504,5.8923,169.67,169.65,0.04431017]
[1748534424507,5.8926,169.66,169.65,0.04431017]
[1748534429311,5.8942,169.62,169.59,5.8949]
[1748534430007,5.8944,169.61,169.58,37.5352]
[1748534430212,31.64,169.69,169.55,37.572]
[1748534430414,5.895,169.59,169.58,0.04378188]
[1748534430611,0.04324894,169.6,169.57,0.04090158]
[1748534430805,0.04324894,169.6,169.57,0.03777002]
[1748534430806,0.04428854,169.6,169.57,0.03777002]
[1748534431108,5.8954,169.58,169.57,0.03777002]
[1748534431603,0.04428854,169.6,169.49,31.66]
[1748534431808,35.7138,169.62,169.49,31.66]
[1748534432007,35.7138,169.62,169.51,5.8978]
[1748534432200,35.7138,169.62,169.49,31.66]
[1748534432608,0.04275763,169.57,169.54,0.04500223]
[1748534433009,0.04275763,169.57,169.54,4.15850223]
[1748534433317,0.04275763,169.57,169.56,5.8961]
[1748534434017,31.64,169.68,169.54,4.15850223]
[1748534434201,31.64,169.68,169.54,4.1135]
[1748534434401,5.8929,169.66,169.54,4.1135]
[1748534434714,31.64,169.68,169.6,5.8944]
[1748534434902,31.64,169.68,169.58,31.64]
[1748534435109,5.8938,169.63,169.62,0.04512643]
[1748534435503,5.8934,169.64,169.62,0.04512643]
[1748534436013,0.04004733,169.66,169.62,0.04512643]
[1748534436216,5.8936,169.63,169.62,0.04512643]
[1748534436810,31.64,169.64,169.54,4.1135]
[1748534437315,5.895,169.6,169.54,4.1135]
[1748534437814,0.03731156,169.59,169.55,5.93959287]
[1748534438015,5.93241156,169.59,169.55,0.04349287]
[1748534438314,0.03731156,169.59,169.55,0.04349287]
[1748534438511,5.8956,169.58,169.55,0.04349287]
[1748534438709,0.03731156,169.59,169.55,0.04349287]
[1748534439305,0.03731156,169.59,169.55,5.93989287]
[1748534439710,0.03731156,169.59,169.55,0.04349287]
[1748534440312,5.8958,169.57,169.55,0.04349287]
[1748534440719,5.8955,169.58,169.55,0.04349287]
[1748534440914,0.03731156,169.59,169.55,0.04349287]
[1748534441313,0.03731156,169.59,169.56,5.8958]
[1748534441812,0.03731156,169.59,169.55,5.93979287]
[1748534442609,0.03731156,169.59,169.56,5.896]
[1748534442816,0.03731156,169.59,169.55,0.04349287]
[1748534444812,5.93231156,169.59,169.55,5.93979287]
[1748534445510,0.03731156,169.59,169.55,0.04349287]
[1748534448016,35.5591,169.69,169.56,9.72]
[1748534448214,33.5723,169.69,169.57,3.8592]
[1748534448411,5.8921,169.68,169.63,5.8934]
[1748534448611,5.8921,169.68,169.58,31.64]
[1748534449016,5.8921,169.68,169.63,5.8933]
[1748534449219,0.04432007,169.65,169.63,5.8933]
[1748534449719,0.04432007,169.65,169.62,5.8939]
[1748534449915,0.04432007,169.65,169.61,20.82295434]
[1748534450317,0.04432007,169.65,169.63,5.8936]
[1748534450516,0.04432007,169.65,169.61,20.82295434]
[1748534450823,0.04432007,169.65,169.62,5.8939]
[1748534452023,0.04432007,169.65,169.61,20.82295434]
[1748534453018,5.894,169.63,169.61,20.82295434]
[1748534453424,0.04432007,169.65,169.61,20.82295434]
[1748534454218,0.04432007,169.65,169.62,31.64]
[1748534454431,5.8913,169.7,169.62,31.64]
[1748534454618,5.8913,169.7,169.63,4.0917]
[1748534455014,5.8913,169.7,169.66,5.8924]
[1748534455221,31.64,169.72,169.63,4.0917]
[1748534455415,0.03901189,169.69,169.66,0.03967198]
[1748534455723,5.8923,169.67,169.66,0.03967198]
[1748534459330,33.5599,169.68,169.61,20.78]
[1748534460133,33.5599,169.68,169.63,0.03843481]
[1748534460825,5.8933,169.64,169.63,0.03843481]
[1748534461426,5.93282233,169.65,169.63,0.03843481]
[1748534461626,0.03982233,169.65,169.63,0.03843481]
[1748534462330,5.8933,169.64,169.63,0.03843481]
[1748534462721,0.03982233,169.65,169.63,0.03843481]
[1748534464029,0.03982233,169.65,169.63,5.93203481]
[1748534464521,0.03982233,169.65,169.64,5.8933]
[1748534464833,0.03982233,169.65,169.63,0.03843481]
[1748534465833,5.8933,169.64,169.63,0.03843481]
[1748534471442,0.03982233,169.65,169.63,0.03843481]
[1748534473846,5.8933,169.64,169.63,0.03843481]
[1748534477445,0.03982233,169.65,169.63,0.03843481]
[1748534477953,0.03982233,169.65,169.63,5.93203481]
[1748534478446,0.03982233,169.65,169.63,0.03843481]
[1748534479747,0.03982233,169.65,169.63,5.93203481]
[1748534480148,0.03982233,169.65,169.64,5.8933]
[1748534480543,31.62,169.73,169.63,0.03843481]
[1748534480746,31.62,169.73,169.67,5.8921]
[1748534480946,31.62,169.73,169.65,41.53089187]
[1748534481142,5.8914,169.7,169.65,41.53089187]
[1748534481549,5.8914,169.7,169.66,8.62]
[1748534481750,0.0448831,169.69,169.66,8.66118902]
[1748534482946,5.8923,169.67,169.66,8.66118902]
[1748534483750,5.894,169.63,169.61,10.16]
[1748534484246,31.62,169.69,169.61,10.16]
[1748534484847,5.8935,169.64,169.63,0.03947449]
[1748534489850,5.8935,169.64,169.63,7.449e-05]
[1748534490251,7.9782,169.64,169.63,7.449e-05]
[1748534491144,9.8898,169.64,169.63,7.449e-05]
[1748534492056,5.8935,169.64,169.63,7.449e-05]
[1748534494652,31.62,169.65,169.61,10.16]
[1748534495057,31.62,169.65,169.54,31.62]
[1748534495450,31.62,169.65,169.57,5.8956]
[1748534495660,0.03881585,169.63,169.59,0.04359679]
[1748534495852,5.8947,169.6,169.59,0.04359679]
[1748534496053,0.03881585,169.63,169.59,0.04359679]
[1748534496449,5.8946,169.61,169.59,0.04359679]
[1748534496852,0.03881585,169.63,169.59,0.04359679]
[1748534497049,5.8947,169.6,169.59,0.04359679]
[1748534502262,31.62,169.61,169.58,1.70689679]
[1748534502463,31.62,169.61,169.48,31.62]
[1748534502464,5.8973,169.53,169.48,31.62]
[1748534502664,2.1004,169.59,169.48,31.62]
[1748534503153,2.1004,169.59,169.49,9.57]
[1748534503357,0.04414211,169.56,169.52,5.93216394]
[1748534503659,0.04414211,169.56,169.52,0.03486394]
[1748534504356,0.04414211,169.56,169.55,5.8964]
[1748534505171,0.04414211,169.56,169.52,8.64486394]
[1748534506161,0.04414211,169.56,169.53,5.8969]
[1748534506555,0.04414211,169.56,169.52,8.64486394]
[1748534506965,5.94024211,169.56,169.53,5.8969]
[1748534507165,0.04414211,169.56,169.52,8.64486394]
[1748534508265,5.8966,169.55,169.52,14.54236394]
[1748534509162,5.94034211,169.56,169.53,5.8971]
[1748534509364,0.04414211,169.56,169.52,8.64486394]
[1748534509764,0.04414211,169.56,169.54,5.8967]
[1748534509964,0.04414211,169.56,169.52,50.19575581]
[1748534510366,0.04414211,169.56,169.55,5.8964]
[1748534510767,31.62,169.61,169.53,1.9113]
[1748534511168,5.8946,169.61,169.57,5.8955]
[1748534511471,33.7404,169.64,169.57,5.8955]
[1748534511669,5.8946,169.61,169.57,5.8955]
[1748534511866,5.93933199,169.61,169.58,5.8954]
[1748534512169,0.04473199,169.61,169.57,0.03805177]
[1748534512466,0.04473199,169.61,169.58,5.8951]
[1748534512873,5.93913199,169.61,169.58,5.8951]
[1748534513071,5.93913199,169.61,169.57,5.93365177]
[1748534513574,5.8949,169.6,169.57,5.93365177]
[1748534513966,0.04473199,169.61,169.57,5.93365177]
[1748534514261,5.93933199,169.61,169.57,5.93365177]
[1748534514462,5.93933199,169.61,169.58,5.8953]
[1748534516878,5.93933199,169.61,169.57,5.93365177]
[1748534517274,5.93933199,169.61,169.57,0.03805177]
[1748534517471,5.8947,169.6,169.57,0.03805177]
[1748534517775,0.04473199,169.61,169.57,0.03805177]
[1748534517965,0.04473199,169.61,169.59,5.8948]
[1748534518170,0.04473199,169.61,169.57,0.03805177]
[1748534518571,0.04473199,169.61,169.59,5.8948]
[1748534518770,0.04473199,169.61,169.57,0.03805177]
[1748534519471,0.04473199,169.61,169.6,5.8947]
[1748534520287,0.04473199,169.61,169.59,12.39]
[1748534520883,0.04473199,169.61,169.59,18.2848]
[1748534521583,0.04473199,169.61,169.6,5.8947]
[1748534521781,0.04473199,169.61,169.59,12.39]
[1748534522786,5.8947,169.6,169.59,12.39]
[1748534523187,0.04473199,169.61,169.59,12.39]
[1748534523388,5.93923199,169.61,169.59,12.39]
[1748534523784,5.8947,169.6,169.59,12.39]
[1748534524290,5.8947,169.6,169.59,9.76813399]
[1748534527382,0.04473199,169.61,169.59,9.76813399]
[1748534528588,0.04473199,169.61,169.6,5.8947]
[1748534529889,0.04473199,169.61,169.59,9.76813399]
[1748534530089,5.8947,169.6,169.59,9.76813399]
[1748534530386,0.04473199,169.61,169.59,9.76813399]
[1748534531088,0.04473199,169.61,169.6,5.8947]
[1748534532384,31.62,169.66,169.62,5.8939]
[1748534532793,5.8932,169.65,169.61,5.8942]
[1748534533092,33.6743,169.69,169.59,19.67902586]
[1748534533292,0.04390699,169.66,169.62,0.03789716]
[1748534533488,0.04390699,169.66,169.63,5.8933]
[1748534534085,0.04390699,169.66,169.64,5.8932]
[1748534535091,5.93650699,169.66,169.62,0.03789716]
[1748534535396,0.04390699,169.66,169.62,0.03789716]
[1748534535594,5.893,169.65,169.62,0.03789716]
[1748534535787,0.04390699,169.66,169.62,0.03789716]
[1748534536494,5.8935,169.64,169.62,0.03789716]
[1748534536687,0.04390699,169.66,169.62,0.03789716]
[1748534536888,5.8932,169.65,169.62,5.93189716]
[1748534537083,0.04390699,169.66,169.62,0.03789716]
[1748534537488,5.8935,169.64,169.62,0.03789716]
[1748534537893,0.04390699,169.66,169.62,0.03789716]
[1748534538094,5.8936,169.63,169.62,0.03789716]
[1748534542700,5.8934,169.64,169.62,0.03789716]
[1748534542901,31.62,169.65,169.62,0.03789716]
[1748534543295,5.8936,169.63,169.62,0.03789716]
[1748534553209,0.04390699,169.66,169.62,0.03789716]
[1748534553506,0.04390699,169.66,169.63,5.8936]
[1748534553704,0.04390699,169.66,169.62,0.03789716]
[1748534554105,5.93650699,169.66,169.63,5.8936]
[1748534554808,0.04390699,169.66,169.64,5.8932]
[1748534555307,5.93650699,169.66,169.64,5.8932]
[1748534555713,0.04390699,169.66,169.64,5.8932]
[1748534556408,0.04390699,169.66,169.65,5.8929]
[1748534557608,0.04390699,169.66,169.64,5.8932]
[1748534558412,0.04390699,169.66,169.62,0.03789716]
[1748534558809,5.8936,169.63,169.62,0.03789716]
[1748534561110,5.8936,169.63,169.62,9.716e-05]
[1748534563206,37.5136,169.63,169.62,9.716e-05]
[1748534563507,5.8957,169.57,169.56,12.17]
[1748534563900,5.8963,169.56,169.53,7.8953]
[1748534564099,1.974,169.64,169.5,509.26]
[1748534564100,31.62,169.59,169.5,509.26]
[1748534564305,31.62,169.59,169.53,0.04298604]
[1748534564505,5.8968,169.54,169.53,0.04298604]
[1748534568734,31.62,169.55,169.53,0.04298604]
[1748534569028,0.0403224,169.56,169.53,0.04298604]
[1748534569216,5.8968,169.54,169.53,0.04298604]
[1748534574020,0.0403224,169.56,169.53,0.04298604]
[1748534574624,5.8964,169.55,169.53,0.04298604]
[1748534574926,0.0403224,169.56,169.53,0.04298604]
[1748534575119,5.9367224,169.56,169.53,0.04298604]
[1748534575315,0.0403224,169.56,169.53,0.04298604]
[1748534575723,5.8965,169.55,169.53,0.04298604]
[1748534575915,0.0403224,169.56,169.53,0.04298604]
[1748534576122,0.0403224,169.56,169.53,5.94008604]
[1748534576318,5.9365224,169.56,169.53,5.94008604]
[1748534576624,0.0403224,169.56,169.54,5.8967]
[1748534576819,0.0403224,169.56,169.53,0.04298604]
[1748534577223,0.0403224,169.56,169.55,5.8964]
[1748534578632,0.0403224,169.56,169.54,5.8966]
[1748534578820,0.0403224,169.56,169.53,0.04298604]
[1748534579234,0.0403224,169.56,169.54,5.8968]
[1748534579623,0.0403224,169.56,169.53,0.04298604]
[1748534579935,0.0403224,169.56,169.54,5.8966]
[1748534580322,0.0403224,169.56,169.55,5.8964]
[1748534580823,0.0403224,169.56,169.53,0.04298604]
[1748534581021,0.0403224,169.56,169.54,5.8966]
[1748534581228,0.0403224,169.56,169.53,0.04298604]
[1748534582021,5.8968,169.54,169.53,0.04298604]
[1748534582933,0.0403224,169.56,169.53,0.04298604]
[1748534583331,5.8965,169.55,169.53,0.04298604]
[1748534585228,5.8965,169.55,169.53,5.94008604]
[1748534585430,5.8965,169.55,169.53,0.04298604]
[1748534586440,5.8968,169.54,169.53,0.04298604]
[1748534587534,31.7003224,169.56,169.43,155.95272792]
[1748534587729,4.1692,169.53,169.36,1.9936]
[1748534587931,4.1692,169.53,169.31,37.302]
[1748534588227,9.91089187,169.52,169.36,9.91089187]
[1748534588425,33.12,169.51,169.37,33.12]
[1748534588636,0.03950753,169.46,169.42,0.04387069]
[1748534589740,5.9,169.45,169.42,0.04387069]
[1748534589941,0.03950753,169.46,169.42,0.04387069]
[1748534590842,0.03950753,169.46,169.43,10.6]
[1748534591441,5.9002,169.44,169.43,10.6]
[1748534593743,5.9002,169.44,169.43,1.6849]
[1748534595144,5.9,169.45,169.43,1.6849]
[1748534595451,0.03950753,169.46,169.43,1.6849]
[1748534595751,5.9,169.45,169.43,1.6849]
[1748534596354,0.03950753,169.46,169.43,1.6849]
[1748534597844,0.03950753,169.46,169.43,7.5852]
[1748534598052,0.03950753,169.46,169.43,1.6849]
[1748534599050,0.03950753,169.46,169.44,33.14]
[1748534599648,5.93930753,169.46,169.44,33.14]
[1748534600041,0.03950753,169.46,169.44,33.14]
[1748534600552,5.8999,169.45,169.44,33.14]
[1748534600752,5.8999,169.45,169.43,1.6849]
[1748534600953,0.03950753,169.46,169.43,1.6849]
[1748534602055,5.93910753,169.46,169.43,1.6849]
[1748534602251,0.03950753,169.46,169.43,1.6849]
[1748534602756,5.9,169.45,169.43,1.6849]
[1748534602949,0.03950753,169.46,169.43,1.6849]
[1748534603261,5.93930753,169.46,169.43,7.5855]
[1748534603455,0.03950753,169.46,169.43,1.6849]
[1748534603651,5.8982,169.5,169.46,5.8993]
[1748534603847,5.8982,169.5,169.44,9.91089187]
[1748534603848,3.8759,169.54,169.45,33.14]
[1748534604256,5.8983,169.5,169.46,5.8993]
[1748534604763,0.03903406,169.5,169.48,5.8986]
[1748534605053,0.03903406,169.5,169.46,0.04150603]
[1748534605250,0.03903406,169.5,169.47,5.8989]
[1748534605859,0.03903406,169.5,169.46,0.04150603]
[1748534606452,5.93723406,169.5,169.46,5.94070603]
[1748534606756,0.03903406,169.5,169.46,5.94070603]
[1748534606959,5.93743406,169.5,169.46,5.94070603]
[1748534607168,0.03903406,169.5,169.48,5.8986]
[1748534607658,0.03903406,169.5,169.49,5.8985]
[1748534607847,33.14,169.59,169.49,33.14]
[1748534608053,5.8966,169.55,169.49,33.14]
[1748534608355,33.14,169.63,169.49,33.14]
[1748534608564,5.8951,169.59,169.52,9.91089187]
[1748534608750,5.8951,169.59,169.53,35.153]
[1748534608951,0.04010317,169.58,169.54,0.04369857]
[1748534609260,0.04010317,169.58,169.55,5.8961]
[1748534610161,0.04010317,169.58,169.54,5.94039857]
[1748534610357,5.8958,169.57,169.54,0.04369857]
[1748534610562,0.04010317,169.58,169.54,0.04369857]
[1748534610859,5.8964,169.56,169.54,0.04369857]
[1748534611062,0.04010317,169.58,169.54,0.04369857]
[1748534611955,5.8964,169.55,169.54,0.04369857]
[1748534612859,0.04010317,169.58,169.54,0.04369857]
[1748534613467,5.8964,169.55,169.54,0.04369857]
[1748534615459,0.04010317,169.58,169.54,0.04369857]
[1748534615963,0.04010317,169.58,169.56,5.8958]
[1748534616169,0.04010317,169.58,169.54,0.04369857]
[1748534616556,0.04010317,169.58,169.56,5.8958]
[1748534617157,0.04010317,169.58,169.55,39.0363]
[1748534617960,0.04010317,169.58,169.56,5.8959]
[1748534618363,40.0326,169.67,169.55,33.14]
[1748534618562,40.0326,169.67,169.57,5.8957]
[1748534619062,40.0326,169.67,169.55,35.0445]
[1748534619261,0.04249238,169.63,169.59,0.04271855]
[1748534619668,0.04249238,169.63,169.62,5.894]
[1748534620367,5.8925,169.67,169.63,5.8935]
[1748534620567,34.04,169.71,169.6,35.9495]
[1748534621265,5.8922,169.68,169.6,35.9495]
[1748534621466,0.0394477,169.67,169.64,0.04083578]
[1748534622159,0.0394477,169.67,169.65,34.02]
[1748534622370,206.25345277,169.74,169.65,34.02]
[1748534622965,5.8911,169.71,169.67,5.892]
[1748534623169,206.25345277,169.74,169.65,34.02]
[1748534623460,0.04208108,169.71,169.68,0.04201455]
[1748534623971,5.8915,169.7,169.68,0.04201455]
[1748534624667,5.8916,169.69,169.68,0.04201455]
[1748534625769,0.04208108,169.71,169.68,0.04201455]
[1748534626465,5.8912,169.7,169.68,0.04201455]
[1748534626865,5.93308108,169.71,169.68,0.04201455]
[1748534627063,0.04208108,169.71,169.68,0.04201455]
[1748534627669,0.04208108,169.71,169.69,5.8915]
[1748534627869,0.04208108,169.71,169.68,0.04201455]
[1748534628062,5.8896,169.75,169.7,34.02]
[1748534628969,4.0699,169.78,169.71,8.66]
[1748534629168,34.02,169.79,169.73,0.04218174]
[1748534629169,0.04010171,169.76,169.73,0.04218174]
[1748534629368,5.92920171,169.76,169.73,0.04218174]
[1748534629769,0.04010171,169.76,169.73,5.93228174]
[1748534630568,0.04010171,169.76,169.73,0.04218174]
[1748534632163,5.8874,169.81,169.77,5.8887]
[1748534632962,5.8874,169.81,169.76,34.0]
[1748534632963,34.0,169.92,169.76,34.0]
[1748534633159,34.0,169.92,169.77,2.0181]
[1748534633364,0.03883886,169.86,169.82,0.04003007]
[1748534634570,5.8861,169.85,169.82,0.04003007]
[1748534634765,0.03883886,169.86,169.82,0.04003007]
[1748534635164,5.92453886,169.86,169.82,5.92693007]
[1748534635565,0.03883886,169.86,169.82,0.04003007]
[1748534636775,542.96,169.96,169.82,2.12113007]
[1748534637069,542.96,169.96,169.82,2.0811]
[1748534637273,5.8854,169.87,169.84,5.8863]
[1748534637666,5.886,169.85,169.84,0.04149544]
[1748534641879,0.04235681,169.87,169.78,33.98]
[1748534642177,2.0238,169.86,169.78,39.8684]
[1748534642868,0.03845558,169.84,169.8,0.03731492]
[1748534643578,5.8869,169.83,169.8,5.92491492]
[1748534643776,0.03845558,169.84,169.8,5.92491492]
[1748534644075,0.03845558,169.84,169.8,0.03731492]
[1748534644277,5.8868,169.83,169.8,5.92491492]
[1748534644574,0.03845558,169.84,169.8,0.03731492]
[1748534645876,0.03845558,169.84,169.83,5.8867]
[1748534646073,0.03845558,169.84,169.83,39.8667]
[1748534646769,0.03845558,169.84,169.83,33.98]
[1748534650575,0.03845558,169.84,169.83,39.8667]
[1748534650776,0.03845558,169.84,169.83,33.98]